fUSD/lending_fUSD_20240412
["ID","MTS","AMOUNT","RATE_DAILY","PERIOD"]
[322301139,1712943042197,-4293.44920053,0.00035544,2]
[322301141,1712943042207,-1788.49411486,0.00035544,2]
[322301143,1712943042216,-5039.34148358,0.00035544,2]
[322301145,1712943042226,-1852.37360094,0.00035544,2]
[322301147,1712943042235,-160010.0,0.00035544,4]
[322301149,1712943042245,-2555.0,0.00035544,4]
[322301151,1712943042255,-22102.0,0.00035544,4]
[322301153,1712943042264,-158.47,0.00035827,2]
[322301155,1712943042275,-2000.0,0.00036,2]
[322301157,1712943042285,-583.35255401,0.00036141,2]
[322301159,1712943042294,-299.2,0.00036207,2]
[322301161,1712943042303,-10000.0,0.00036437,2]
[322301163,1712943042312,-234.01,0.000365,2]
[322301165,1712943042321,-186.55,0.000365,2]
[322301167,1712943042331,-156.76,0.0003653,2]
[322301169,1712943042341,-552.0,0.00036548,7]
[322301171,1712943042350,-500.0,0.00036548,7]
[322301173,1712943042359,-1871.01756841,0.00036664,9]
[322301175,1712943042369,-152.36016134,0.00036701,2]
[322301177,1712943042378,-407.2043613,0.000369,2]
[322301179,1712943042388,-407.20436116,0.000369,2]
[322301181,1712943042398,-407.20436116,0.000369,2]
[322301183,1712943042407,-407.20436116,0.000369,2]
[322301185,1712943042416,-407.20436116,0.000369,2]
[322301187,1712943042426,-407.20436116,0.000369,2]
[322301189,1712943042435,-407.20436116,0.000369,2]
[322301191,1712943042445,-407.20436116,0.000369,2]
[322301193,1712943042455,-407.20436116,0.000369,2]
[322301195,1712943042464,-407.20436116,0.000369,2]
[322301197,1712943042473,-407.20436116,0.000369,2]
[322301199,1712943042483,-407.20436116,0.000369,2]
[322301201,1712943042492,-407.20436116,0.000369,2]
[322301203,1712943042502,-407.20436116,0.000369,2]
[322301205,1712943042512,-407.20436116,0.000369,2]
[322301207,1712943042522,-407.20436116,0.000369,2]
[322301209,1712943042532,-407.20436116,0.000369,2]
[322301211,1712943042541,-407.20436116,0.000369,2]
[322301213,1712943042549,-407.20436116,0.000369,2]
[322301215,1712943042558,-407.20436116,0.000369,2]
[322301218,1712943042567,-150.11,0.00036986,2]
[322301220,1712943042576,-152.59,0.000371,3]
[322301222,1712943042587,-152.59,0.000371,3]
[322301224,1712943042596,-152.59,0.000371,3]
[322301226,1712943042606,-152.59,0.000371,3]
[322301228,1712943042616,-3041.0,0.00037121,2]
[322301230,1712943042625,-1471.0,0.00037121,2]
[322301232,1712943042635,-152.649,0.00037121,2]
[322301234,1712943042644,-398.0,0.00037121,2]
[322301236,1712943042655,-1140.0,0.00037121,2]
[322301238,1712943042665,-286.039,0.00037121,2]
[322301240,1712943042676,-2438.0,0.00037121,2]
[322301242,1712943042686,-1642.848,0.00037121,2]
[322301244,1712943042696,-453.423,0.00037121,2]
[322301246,1712943042705,-214.0,0.00037121,2]
[322301248,1712943042715,-354.0,0.00037121,2]
[322301251,1712943042726,-5707.0,0.00037121,2]
[322301253,1712943042735,-4793.0,0.00037121,2]
[322301255,1712943042745,-37595.0,0.00037121,2]
[322301257,1712943042755,-2464.0,0.00037121,2]
[322301258,1712943042764,-1314.0,0.00037121,2]
[322301261,1712943042777,-539.0,0.00037121,2]
[322301263,1712943042788,-1260.0,0.00037121,2]
[322301265,1712943042798,-1042.0,0.00037121,2]
[322301267,1712943042810,-4090.15503409,0.0003759,2]
[322301269,1712943042820,-500.0,0.00037781,7]
[322301271,1712943042830,-163.99351249,0.000378,2]
[322301273,1712943042841,-156.76364703,0.00038017,7]
[322301275,1712943042852,-323.04,0.00038027,15]
[322301277,1712943042862,-156.76364703,0.00038463,7]
[322301278,1712943042872,-299.2,0.00038471,2]
[322301281,1712943042882,-2250.0,0.000386,2]
[322301284,1712943042892,-282.57870686,0.00038611,5]
[322301286,1712943042902,-583.35255401,0.00038728,2]
[322301290,1712943042912,-302.0,0.000388,5]
[322301294,1712943042923,-2000.0,0.00039,2]
[322301297,1712943042934,-500.0,0.00039014,7]
[322301300,1712943042945,-150.11,0.00039041,2]
[322301302,1712943042957,-1871.01756841,0.00039291,13]
[322301305,1712943042968,-98039.75339059,0.000395,30]
[322301307,1712943042979,-150.99,0.00039574,2]
[322301343,1712943043110,-158.43882462,0.00039612,7]
[322301348,1712943043143,-156.76364703,0.00039694,7]
[322301351,1712943043153,-155.98814489,0.00039878,7]
[322301354,1712943043163,-234.01,0.000399,7]
[322301357,1712943043173,-186.55,0.000399,7]
[322301360,1712943043183,-544.05162533,0.0004,120]
[322301363,1712943043193,-3355.53099439,0.0004,4]
[322301366,1712943043204,-1198.82415616,0.0004,30]
[322301368,1712943043213,-3269.55888913,0.0004,4]
[322301373,1712943043223,-194.59758508,0.0004,2]
[322301379,1712943043234,-156.76364703,0.00040012,30]
[322301385,1712943043244,-151.05662621,0.00040054,30]
[322301393,1712943043253,-157.73922524,0.00040088,30]
[322301401,1712943043263,-442.0,0.00040121,2]
[322301408,1712943043273,-356.952,0.00040121,2]
[322301418,1712943043284,-500.0,0.00040247,7]
[322301425,1712943043294,-155.8997184,0.00040434,30]
[322301432,1712943043305,-168.88618113,0.00040533,30]
[322301438,1712943043315,-152.59,0.000406,4]
[322301442,1712943043325,-911.0,0.00040662,5]
[322301446,1712943043335,-155.98814489,0.00040665,30]
[322301449,1712943043345,-156.76364703,0.00040729,30]
[322301453,1712943043355,-299.2,0.00040735,2]
[322301458,1712943043365,-323.04,0.00040767,15]
[322301463,1712943043375,-156.76364703,0.00040786,30]
[322301469,1712943043386,-168.88618113,0.00041056,30]
[322301473,1712943043396,-150.11,0.00041096,2]
[322301477,1712943043407,-157.0,0.00041096,2]
[322301481,1712943043417,-153.40820887,0.00041119,30]
[322301484,1712943043428,-156.76364703,0.00041172,30]
[322301487,1712943043439,-150.76473124,0.000413,30]
[322301490,1712943043450,-583.35255401,0.00041314,2]
[322301493,1712943043461,-153.40820887,0.00041388,30]
[322301496,1712943043471,-2250.0,0.000414,2]
[322301498,1712943043482,-168.88618113,0.00041425,30]
[322301501,1712943043493,-155.89971841,0.00041427,30]
[322301503,1712943043505,-500.0,0.0004148,7]
[322301506,1712943043518,-155.98814489,0.00041544,30]
[322301508,1712943043529,-156.76364703,0.000416,30]
[322301510,1712943043539,-159.6662564,0.00041696,30]
[322301512,1712943043548,-153.27967446,0.00041821,30]
[322301514,1712943043558,-169.51155599,0.00041889,30]
[322301516,1712943043568,-1871.01756841,0.00041918,16]
[322301518,1712943043579,-13410.39801573,0.00042,2]
[322301520,1712943043590,-159.88497579,0.00042039,30]
[322301522,1712943043600,-152.0,0.0004269,3]
[322301524,1712943043610,-500.0,0.00042712,7]
[322301526,1712943043619,-153.40820887,0.00042764,30]
[322301528,1712943043629,-156.76364703,0.00042867,30]
[322301530,1712943043639,-299.2,0.00042999,2]
[322301531,1712943043649,-150.11,0.00043151,2]
[322301532,1712943043659,-234.01,0.000434,7]
[322301533,1712943043669,-186.55,0.000434,7]
[322301534,1712943043678,-323.04,0.00043507,15]
[322301535,1712943043688,-153.40820887,0.00043649,30]
[322301536,1712943043698,-6806.32,0.00043836,2]
[322301537,1712943043708,-1649.85,0.00043836,2]
[322301538,1712943043717,-156.76364703,0.00043847,30]
[322301540,1712943043727,-583.35255401,0.000439,2]
[322301542,1712943043737,-508.0,0.00043945,7]
[322301544,1712943043748,-800.0,0.0004397,3]
[322301546,1712943043759,-78844.01298816,0.00044,10]
[322301548,1712943043770,-150.0,0.00044,44]
[322301550,1712943043780,-2117.091,0.00044093,14]
[322301552,1712943043791,-158.43882462,0.00044124,30]
[322301554,1712943043802,-152.59,0.000442,5]
[322301556,1712943043812,-152.59,0.000442,5]
[322301558,1712943043823,-158.47,0.00044257,2]
[322301560,1712943043834,-168.88618113,0.00044457,30]
[322301562,1712943043844,-1871.01756841,0.00044545,19]
[322301565,1712943043855,-152.36016134,0.00044602,24]
[322301567,1712943043865,-156.33363119,0.0004467,30]
[322301569,1712943043876,-155.98814489,0.00044817,30]
[322301571,1712943043886,-159.8849758,0.00044841,30]
[322301573,1712943043896,-170.49660245,0.00045,7]
[322301575,1712943043907,-10402.76313216,0.00045,5]
[322301577,1712943043917,-3557.88827781,0.00045,30]
[322301578,1712943043927,-7760.39203124,0.00045,30]
[322301580,1712943043937,-197.9729492,0.00045,4]
[322301583,1712943043948,-150.11,0.00045205,2]
[322301585,1712943043959,-299.2,0.00045262,2]
[322301586,1712943043969,-150.0,0.000455,8]
[322301589,1712943043980,-156.76,0.00045662,2]
[322301591,1712943043991,-150.76473124,0.00045781,30]
[322301593,1712943044002,-3588.23474043,0.0004595,21]
[322301595,1712943044012,-150.0,0.00046,8]
[322301596,1712943044023,-6926.40813717,0.00046109,2]
[322301599,1712943044033,-234.01,0.000462,7]
[322301601,1712943044045,-186.55,0.000462,7]
[322301603,1712943044056,-153.27967446,0.00046235,30]
[322301605,1712943044067,-323.04,0.00046247,15]
[322301607,1712943044077,-187.52055754,0.00046372,30]
[322301609,1712943044089,-205056.04897222,0.00046373,15]
[322301632,1712943044327,-1380.0002,0.00046373,15]
[322301635,1712943044341,-1117.96261519,0.00046373,15]
[322301637,1712943044354,-54350.40899573,0.00046373,15]
[322301639,1712943044364,-153.92846996,0.00046424,30]
[322301641,1712943044374,-700.0,0.0004647,3]
[322301643,1712943044385,-79149.58164951,0.000465,7]
[322301645,1712943044398,-4369.1532519,0.000465,7]
[322301648,1712943044410,-2772.81681197,0.000465,7]
[322301650,1712943044423,-3064.41254236,0.000465,7]
[322301652,1712943044436,-4650.79973782,0.000465,7]
[322301654,1712943044446,-150.0,0.000465,8]
[322301656,1712943044457,-154.14489771,0.00046515,30]
[322301659,1712943044468,-700.0,0.0004657,3]
[322301660,1712943044478,-218.25436688,0.00046575,30]
[322301663,1712943044491,-281.74563312,0.00046575,30]
[322301665,1712943044505,-500.0,0.00046575,31]
[322301667,1712943044516,-448.64762469,0.00046575,31]
[322301669,1712943044526,-500.0,0.00046575,31]
[322301671,1712943044537,-183.80056722,0.00046575,31]
[322301673,1712943044547,-500.0,0.00046575,31]
[322301675,1712943044557,-228.45337418,0.00046575,31]
[322301677,1712943044567,-500.0,0.00046575,31]
[322301679,1712943044577,-500.0,0.00046575,31]
[322301681,1712943044587,-500.0,0.00046575,31]
[322301683,1712943044597,-500.0,0.00046575,31]
[322301685,1712943044607,-370.14670144,0.00046575,31]
[322301687,1712943044620,-129.85329856,0.00046575,31]
[322301690,1712943044631,-500.0,0.00046575,31]
[322301691,1712943044640,-191.32161793,0.00046575,31]
[322301694,1712943044653,-308.67838207,0.00046575,31]
[322301696,1712943044663,-508.08473832,0.00046575,31]
[322301698,1712943044672,-500.0,0.00046575,31]
[322301701,1712943044694,-500.0,0.00046575,31]
[322301703,1712943044705,-500.0,0.00046575,31]
[322301705,1712943044715,-500.0,0.00046575,31]
[322301707,1712943044725,-500.0,0.00046575,31]
[322301709,1712943044736,-500.0,0.00046575,31]
[322301711,1712943044746,-518.03904306,0.00046575,31]
[322301714,1712943044756,-500.0,0.00046575,31]
[322301716,1712943044765,-500.0,0.00046575,31]
[322301718,1712943044781,-502.77341379,0.00046575,31]
[322301720,1712943044791,-500.0,0.00046575,5]
[322301722,1712943044801,-500.0,0.00046575,31]
[322301724,1712943044810,-458.98251499,0.00046575,31]
[322301726,1712943044821,-500.0,0.00046575,31]
[322301728,1712943044831,-398.94524847,0.00046575,31]
[322301730,1712943044846,-101.05475153,0.00046575,31]
[322301732,1712943044856,-510.06228773,0.00046575,3]
[322301734,1712943044866,-500.0,0.00046575,31]
[322301736,1712943044877,-500.0,0.00046575,31]
[322301739,1712943044887,-500.0,0.00046575,31]
[322301741,1712943044898,-500.0,0.00046575,31]
[322301743,1712943044907,-500.0,0.00046575,31]
[322301745,1712943044918,-500.0,0.00046575,31]
[322301747,1712943044927,-110.48666656,0.00046575,31]
[322301749,1712943044941,-85.71333344,0.00046575,31]
[322301751,1712943044951,-500.0,0.00046575,31]
[322301753,1712943044962,-178.68015556,0.00046575,31]
[322301756,1712943044975,-321.31984444,0.00046575,31]
[322301758,1712943044985,-500.0,0.00046575,31]
[322301760,1712943044995,-513.6418495,0.00046575,31]
[322301762,1712943045005,-511.10079413,0.00046575,31]
[322301764,1712943045015,-193.75695821,0.00046575,31]
[322301766,1712943045027,-306.24304179,0.00046575,31]
[322301768,1712943045036,-500.0,0.00046575,31]
[322301770,1712943045046,-500.0,0.00046575,31]
[322301772,1712943045056,-500.0,0.00046575,31]
[322301774,1712943045065,-536.54474859,0.00046575,31]
[322301777,1712943045075,-537.7218978,0.00046575,31]
[322301779,1712943045086,-518.37425659,0.00046575,31]
[322301781,1712943045100,-595.67,0.00046575,31]
[322301783,1712943045119,-511.40607744,0.00046575,31]
[322301785,1712943045128,-500.0,0.00046575,31]
[322301787,1712943045141,-500.0,0.00046575,31]
[322301789,1712943045151,-500.0,0.00046575,31]
[322301791,1712943045160,-500.0,0.00046575,31]
[322301793,1712943045170,-181.23997779,0.00046575,31]
[322301795,1712943045184,-318.76002221,0.00046575,31]
[322301798,1712943045194,-500.0,0.00046575,31]
[322301800,1712943045203,-500.0,0.00046575,31]
[322301802,1712943045213,-604.50616769,0.00046575,31]
[322301804,1712943045223,-500.0,0.00046575,31]
[322301806,1712943045232,-316.56923321,0.00046575,31]
[322301808,1712943045242,-500.0,0.00046575,31]
[322301810,1712943045252,-500.0,0.00046575,31]
[322301812,1712943045262,-500.0,0.00046575,31]
[322301814,1712943045272,-500.0,0.00046575,31]
[322301816,1712943045282,-510.86869126,0.00046575,31]
[322301818,1712943045291,-500.0,0.00046575,31]
[322301820,1712943045301,-14.31789915,0.00046575,31]
[322301822,1712943045315,-633.96499619,0.00046575,31]
[322301824,1712943045324,-500.0,0.00046575,31]
[322301826,1712943045334,-500.0,0.00046575,31]
[322301828,1712943045344,-473.46066297,0.00046575,31]
[322301830,1712943045353,-500.0,0.00046575,31]
[322301832,1712943045363,-500.0,0.00046575,31]
[322301835,1712943045372,-560.45,0.00046575,31]
[322301837,1712943045383,-437.99,0.00046575,31]
[322301839,1712943045393,-500.0,0.00046575,31]
[322301841,1712943045403,-500.0,0.00046575,31]
[322301843,1712943045417,-504.82540812,0.00046575,31]
[322301845,1712943045426,-500.0,0.00046575,31]
[322301847,1712943045436,-500.0,0.00046575,31]
[322301849,1712943045446,-172.14753272,0.00046575,31]
[322301852,1712943045459,-327.85246728,0.00046575,31]
[322301854,1712943045469,-526.02227896,0.00046575,31]
[322301856,1712943045478,-502.80174093,0.00046575,31]
[322301858,1712943045488,-500.0,0.00046575,31]
[322301860,1712943045500,-500.0,0.00046575,31]
[322301862,1712943045511,-500.0,0.00046575,31]
[322301864,1712943045521,-500.0,0.00046575,31]
[322301866,1712943045531,-500.0,0.00046575,31]
[322301868,1712943045545,-500.0,0.00046575,31]
[322301870,1712943045555,-507.24961377,0.00046575,31]
[322301872,1712943045566,-567.95389229,0.00046575,31]
[322301873,1712943045576,-500.0,0.00046575,31]
[322301874,1712943045591,-500.0,0.00046575,31]
[322301883,1712943045721,-368.12000677,0.00046575,31]
[322301886,1712943045737,-131.87999323,0.00046575,31]
[322301888,1712943045748,-300.0,0.00046575,7]
[322301890,1712943045759,-500.0,0.00046575,31]
[322301892,1712943045769,-500.0,0.00046575,31]
[322301894,1712943045779,-500.0,0.00046575,31]
[322301896,1712943045789,-500.0,0.00046575,31]
[322301898,1712943045799,-500.0,0.00046575,31]
[322301900,1712943045809,-500.0,0.00046575,31]
[322301902,1712943045819,-500.0,0.00046575,31]
[322301904,1712943045828,-500.0,0.00046575,31]
[322301906,1712943045838,-500.0,0.00046575,31]
[322301908,1712943045848,-500.0,0.00046575,31]
[322301910,1712943045858,-500.0,0.00046575,31]
[322301912,1712943045868,-500.0,0.00046575,31]
[322301914,1712943045877,-546.65495616,0.00046575,31]
[322301916,1712943045886,-500.0,0.00046575,31]
[322301918,1712943045896,-500.0,0.00046575,2]
[322301920,1712943045906,-71.46505061,0.00046575,31]
[322301922,1712943045919,-428.53494939,0.00046575,31]
[322301924,1712943045929,-256.89479561,0.00046575,31]
[322301927,1712943045941,-243.10520439,0.00046575,31]
[322301929,1712943045951,-281.90866853,0.00046575,31]
[322301932,1712943045960,-159.05612708,0.00046575,31]
[322301937,1712943045972,-340.94387292,0.00046575,31]
[322301939,1712943045981,-500.0,0.00046575,31]
[322301942,1712943045991,-500.0,0.00046575,31]
[322301947,1712943046002,-259.85940966,0.00046575,31]
[322301950,1712943046011,-500.0,0.00046575,31]
[322301954,1712943046019,-500.0,0.00046575,31]
[322301957,1712943046028,-500.0,0.00046575,31]
[322301961,1712943046038,-502.0,0.00046575,31]
[322301965,1712943046047,-500.0,0.00046575,31]
[322301968,1712943046056,-500.0,0.00046575,31]
[322301972,1712943046065,-500.0,0.00046575,31]
[322301975,1712943046075,-434.0428835,0.00046575,31]
[322301978,1712943046085,-498.87772334,0.00046575,31]
[322301981,1712943046098,-500.0,0.00046575,31]
[322301985,1712943046122,-500.0,0.00046575,31]
[322301988,1712943046133,-1000.0,0.00046575,120]
[322301996,1712943046145,-631.97,0.00046575,31]
[322302003,1712943046155,-500.0,0.00046575,31]
[322302009,1712943046165,-500.0,0.00046575,31]
[322302016,1712943046175,-150.0,0.00046575,31]
[322302023,1712943046185,-265.77117395,0.00046575,31]
[322302030,1712943046194,-500.0,0.00046575,31]
[322302037,1712943046204,-500.0,0.00046575,31]
[322302044,1712943046214,-500.0,0.00046575,31]
[322302052,1712943046223,-608.51,0.00046575,31]
[322302058,1712943046233,-500.0,0.00046575,31]
[322302063,1712943046243,-500.0,0.00046575,31]
[322302070,1712943046253,-500.0,0.00046575,31]
[322302076,1712943046262,-500.0,0.00046575,31]
[322302082,1712943046271,-500.0,0.00046575,31]
[322302089,1712943046281,-500.0,0.00046575,31]
[322302094,1712943046291,-500.0,0.00046575,31]
[322302100,1712943046301,-536.64,0.00046575,31]
[322302106,1712943046311,-500.0,0.00046575,31]
[322302112,1712943046321,-500.0,0.00046575,31]
[322302118,1712943046331,-500.0,0.00046575,31]
[322302124,1712943046340,-500.0,0.00046575,31]
[322302130,1712943046350,-500.0,0.00046575,31]
[322302136,1712943046360,-500.0,0.00046575,31]
[322302141,1712943046370,-500.0,0.00046575,31]
[322302146,1712943046379,-500.0,0.00046575,31]
[322302152,1712943046390,-500.0,0.00046575,31]
[322302158,1712943046399,-500.0,0.00046575,31]
[322302163,1712943046409,-500.0,0.00046575,31]
[322302168,1712943046419,-500.0,0.00046575,31]
[322302174,1712943046428,-377.7520452,0.00046575,31]
[322302178,1712943046438,-196.80887275,0.00046575,31]
[322302184,1712943046447,-500.0,0.00046575,31]
[322302190,1712943046457,-500.0,0.00046575,31]
[322302194,1712943046466,-500.0,0.00046575,31]
[322302199,1712943046476,-500.0,0.00046575,31]
[322302205,1712943046486,-500.0,0.00046575,31]
[322302210,1712943046498,-500.0,0.00046575,31]
[322302213,1712943046511,-500.0,0.00046575,31]
[322302217,1712943046521,-500.0,0.00046575,31]
[322302221,1712943046530,-500.0,0.00046575,31]
[322302225,1712943046540,-500.0,0.00046575,31]
[322302230,1712943046552,-500.0,0.00046575,31]
[322302233,1712943046561,-500.0,0.00046575,31]
[322302236,1712943046572,-500.0,0.00046575,31]
[322302240,1712943046581,-205.10264486,0.00046575,31]
[322302243,1712943046591,-129.02137382,0.00046575,31]
[322302249,1712943046621,-370.97862618,0.00046575,31]
[322302253,1712943046632,-500.0,0.00046575,31]
[322302257,1712943046641,-500.0,0.00046575,31]
[322302260,1712943046651,-500.0,0.00046575,31]
[322302264,1712943046661,-500.0,0.00046575,31]
[322302268,1712943046671,-500.0,0.00046575,31]
[322302272,1712943046682,-500.0,0.00046575,31]
[322302276,1712943046692,-575.17,0.00046575,31]
[322302280,1712943046702,-500.0,0.00046575,31]
[322302284,1712943046714,-500.0,0.00046575,31]
[322302291,1712943046735,-500.0,0.00046575,31]
[322302296,1712943046747,-155.0,0.00046575,31]
[322302300,1712943046758,-500.0,0.00046575,31]
[322302304,1712943046768,-500.0,0.00046575,31]
[322302308,1712943046778,-500.0,0.00046575,31]
[322302312,1712943046789,-533.02,0.00046575,2]
[322302316,1712943046800,-500.0,0.00046575,31]
[322302320,1712943046810,-500.0,0.00046575,31]
[322302324,1712943046822,-500.0,0.00046575,31]
[322302330,1712943046832,-500.0,0.00046575,31]
[322302333,1712943046843,-500.0,0.00046575,31]
[322302336,1712943046853,-500.0,0.00046575,31]
[322302339,1712943046863,-500.0,0.00046575,31]
[322302343,1712943046873,-500.0,0.00046575,31]
[322302347,1712943046884,-500.0,0.00046575,31]
[322302351,1712943046895,-500.0,0.00046575,31]
[322302355,1712943046906,-500.0,0.00046575,31]
[322302359,1712943046916,-291.9,0.00046575,31]
[322302363,1712943046926,-500.0,0.00046575,31]
[322302367,1712943046936,-500.0,0.00046575,31]
[322302371,1712943046947,-500.0,0.00046575,31]
[322302375,1712943046957,-500.0,0.00046575,31]
[322302379,1712943046967,-500.0,0.00046575,31]
[322302383,1712943046977,-623.8,0.00046575,31]
[322302387,1712943046988,-500.0,0.00046575,31]
[322302391,1712943046998,-593.66406738,0.00046575,31]
[322302396,1712943047009,-500.0,0.00046575,31]
[322302400,1712943047021,-644.29357741,0.00046575,31]
[322302404,1712943047032,-500.0,0.00046575,31]
[322302408,1712943047042,-526.86381402,0.00046575,31]
[322302412,1712943047052,-559.63,0.00046575,31]
[322302417,1712943047062,-500.0,0.00046575,31]
[322302422,1712943047072,-509.37436161,0.00046575,31]
[322302426,1712943047082,-500.0,0.00046575,31]
[322302430,1712943047092,-500.0,0.00046575,31]
[322302434,1712943047114,-500.0,0.00046575,31]
[322302438,1712943047125,-511.2609775,0.00046575,31]
[322302441,1712943047135,-953.04,0.00046575,31]
[322302444,1712943047145,-500.0,0.00046575,31]
[322302447,1712943047155,-500.0,0.00046575,31]
[322302451,1712943047165,-500.0,0.00046575,31]
[322302455,1712943047174,-500.0,0.00046575,31]
[322302459,1712943047184,-500.0,0.00046575,31]
[322302462,1712943047193,-500.0,0.00046575,31]
[322302466,1712943047203,-500.0,0.00046575,31]
[322302470,1712943047213,-465.5,0.00046575,31]
[322302474,1712943047225,-500.0,0.00046575,31]
[322302477,1712943047234,-500.0,0.00046575,31]
[322302479,1712943047244,-567.16762757,0.00046575,31]
[322302481,1712943047254,-500.0,0.00046575,31]
[322302483,1712943047264,-500.0,0.00046575,31]
[322302485,1712943047275,-184.95337491,0.00046575,31]
[322302487,1712943047285,-500.0,0.00046575,31]
[322302489,1712943047295,-500.0,0.00046575,31]
[322302491,1712943047305,-500.0,0.00046575,31]
[322302494,1712943047314,-184.38357342,0.00046575,31]
[322302591,1712943048134,-4320.6168931,0.00020593,2]
[322302595,1712943048147,-11524.98485612,0.00020593,2]
[322302600,1712943048158,-413.09680477,0.00020688,2]
[322302603,1712943048167,-158.50479683,0.00020688,2]
[322302606,1712943048178,-240.80539859,0.00020782,2]
[322302608,1712943048188,-351.76,0.0002099,3]
[322302612,1712943048198,-500.0,0.00020999,2]
[322302616,1712943048208,-407.92398347,0.00020999,2]
[322302619,1712943048218,-563.1821144,0.00022,2]
[322302622,1712943048228,-563.1821144,0.00022,2]
[322302625,1712943048240,-563.1821144,0.00022,2]
[322302628,1712943048250,-563.1821144,0.00022,2]
[322302631,1712943048260,-563.1821144,0.00022,2]
[322302633,1712943048270,-563.1821144,0.00022,2]
[322302635,1712943048280,-563.1821144,0.00022,2]
[322302637,1712943048290,-563.1821144,0.00022,2]
[322302639,1712943048300,-563.1821144,0.00022,2]
[322302641,1712943048310,-563.1821144,0.00022,2]
[322302643,1712943048319,-563.1821144,0.00022,2]
[322302645,1712943048329,-563.1821144,0.00022,2]
[322302648,1712943048339,-563.1821144,0.00022,2]
[322302650,1712943048350,-563.1821144,0.00022,2]
[322302652,1712943048359,-563.1821144,0.00022,2]
[322302654,1712943048369,-563.1821144,0.00022,2]
[322302656,1712943048379,-563.1821144,0.00022,2]
[322302658,1712943048388,-563.1821144,0.00022,2]
[322302660,1712943048398,-563.1821144,0.00022,2]
[322302662,1712943048408,-563.1821144,0.00022,2]
[322302664,1712943048418,-563.1821144,0.00022,2]
[322302666,1712943048427,-563.1821144,0.00022,2]
[322302668,1712943048438,-563.1821144,0.00022,2]
[322302670,1712943048448,-215.758863,0.00025753,2]
[322302672,1712943048458,-215.758863,0.00026575,2]
[322302675,1712943048467,-215.758863,0.00027397,2]
[322302677,1712943048478,-151.68,0.00029,2]
[322302679,1712943048490,-151.68,0.00029,2]
[322302681,1712943048507,-151.68,0.00029,2]
[322302683,1712943048517,-151.68,0.00029,2]
[322302685,1712943048527,-151.68,0.00029,2]
[322302687,1712943048539,-151.68,0.00029,2]
[322302690,1712943048551,-151.68,0.00029,2]
[322302692,1712943048561,-151.68,0.00029,2]
[322302694,1712943048572,-151.68,0.00029,2]
[322302696,1712943048582,-151.68,0.00029,2]
[322302698,1712943048593,-151.68,0.00029,2]
[322302700,1712943048607,-151.68,0.00029,2]
[322302702,1712943048628,-151.68,0.00029,2]
[322302704,1712943048641,-151.68,0.00029,2]
[322302706,1712943048651,-151.68,0.00029,2]
[322302708,1712943048661,-151.68,0.00029,2]
[322302710,1712943048672,-151.68,0.00029,2]
[322302712,1712943048681,-151.68,0.00029,2]
[322302714,1712943048691,-659.33153265,0.00036437,2]
[322302716,1712943048702,-439.387,0.00037121,2]
[322302718,1712943048711,-315.61642658,0.00046575,31]
[322302720,1712943048721,-500.0,0.00046575,31]
[322302722,1712943048731,-500.0,0.00046575,31]
[322302724,1712943048741,-500.0,0.00046575,31]